[Event "Live Chess"]
[Site "Chess.com"]
[Date "2023.05.20"]
[Round "-"]
[White "GEMdzq"]
[Black "blowerd"]
[Result "1-0"]
[WhiteElo "2230"]
[BlackElo "1399"]
[TimeControl "300"]
[EndTime "15:40:50 PDT"]
[Termination "GEMdzq won by checkmate"]

1. e4 {[%clk 0:04:58.7]} 1... e5 {[%clk 0:04:58.9]} 2. d4 {[%clk 0:04:57.3]}
2... exd4 {[%clk 0:04:57]} 3. c3 {[%clk 0:04:57]} 3... dxc3 {[%clk 0:04:55.5]}
4. Bc4 {[%clk 0:04:56.1]} 4... Qf6 {[%clk 0:04:44.4]} 5. Nxc3 {[%clk 0:04:48.6]}
5... Bc5 {[%clk 0:04:43.1]} 6. Nf3 {[%clk 0:04:44.8]} 6... Nc6 {[%clk
0:04:40.6]} 7. O-O {[%clk 0:04:42.6]} 7... Nge7 {[%clk 0:04:37.6]} 8. e5 {[%clk
0:04:28.5]} 8... Nxe5 {[%clk 0:04:34.8]} 9. Nxe5 {[%clk 0:04:28.4]} 9... Qxe5
{[%clk 0:04:32.4]} 10. Re1 {[%clk 0:04:26.3]} 10... Qf6 {[%clk 0:04:29.2]} 11.
Be3 {[%clk 0:04:24.5]} 11... Bxe3 {[%clk 0:04:26.8]} 12. Rxe3 {[%clk 0:04:23.7]}
12... O-O {[%clk 0:04:23]} 13. Ne4 {[%clk 0:04:21.9]} 13... Qc6 {[%clk
0:04:04.2]} 14. Rc1 {[%clk 0:04:13]} 14... Qg6 {[%clk 0:03:54.9]} 15. Bd3 {[%clk
0:03:47.5]} 15... d6 {[%clk 0:03:46.3]} 16. Ng3 {[%clk 0:03:26.5]} 16... Qf6
{[%clk 0:03:38.8]} 17. Rxc7 {[%clk 0:03:21]} 17... Nd5 {[%clk 0:03:29.5]} 18.
Bxh7+ {[%clk 0:03:05.9]} 18... Kxh7 {[%clk 0:03:21.1]} 19. Qxd5 {[%clk
0:03:04.2]} 19... Be6 {[%clk 0:03:05.4]} 20. Qd2 {[%clk 0:02:48.2]} 20... Rac8
{[%clk 0:02:50]} 21. Ne4 {[%clk 0:02:46.8]} 21... Qg6 {[%clk 0:02:16.2]} 22.
Rxb7 {[%clk 0:02:36]} 22... Bd5 {[%clk 0:02:03.1]} 23. Rb4 {[%clk 0:02:15]}
23... Bxe4 {[%clk 0:01:55.8]} 24. Rbxe4 {[%clk 0:02:14.9]} 24... Kg8 {[%clk
0:01:40.8]} 25. h4 {[%clk 0:02:10.3]} 25... Rc5 {[%clk 0:01:31.4]} 26. Rd4
{[%clk 0:01:59.5]} 26... Rfc8 {[%clk 0:01:26.9]} 27. Rg3 {[%clk 0:01:55.7]}
27... Rc1+ {[%clk 0:01:13.9]} 28. Kh2 {[%clk 0:01:54.4]} 28... Qf6 {[%clk
0:01:12.4]} 29. Rdg4 {[%clk 0:01:46.3]} 29... g6 {[%clk 0:01:04.5]} 30. h5
{[%clk 0:01:45]} 30... Qh8 {[%clk 0:00:57.3]} 31. Rxg6+ {[%clk 0:01:33.9]} 31...
fxg6 {[%clk 0:00:53.9]} 32. Rxg6+ {[%clk 0:01:32.9]} 32... Kf7 {[%clk
0:00:42.2]} 33. Qd5+ {[%clk 0:01:31.1]} 33... Ke7 {[%clk 0:00:39.8]} 34. Qxd6+
{[%clk 0:01:29.5]} 34... Kf7 {[%clk 0:00:37.7]} 35. Qe6+ {[%clk 0:01:27.3]}
35... Kf8 {[%clk 0:00:35.7]} 36. Rf6+ {[%clk 0:01:25.7]} 36... Kg7 {[%clk
0:00:32.7]} 37. Qf7# {[%clk 0:01:23.6]} 1-0

[Event "Live Chess"]
[Site "Chess.com"]
[Date "2023.05.20"]
[Round "-"]
[White "TheSmoulderingMaster"]
[Black "chessfiction"]
[Result "0-1"]
[WhiteElo "1687"]
[BlackElo "2338"]
[TimeControl "300"]
[EndTime "15:40:56 PDT"]
[Termination "chessfiction won by resignation"]

1. e4 {[%clk 0:04:59.1]} 1... d6 {[%clk 0:04:58.2]} 2. d4 {[%clk 0:04:57.7]}
2... Nf6 {[%clk 0:04:58.1]} 3. Nc3 {[%clk 0:04:56.4]} 3... c6 {[%clk 0:04:57]}
4. Nf3 {[%clk 0:04:45.2]} 4... Bg4 {[%clk 0:04:55]} 5. Bf4 {[%clk 0:04:44]} 5...
Nbd7 {[%clk 0:04:53.5]} 6. Be2 {[%clk 0:04:43.2]} 6... Qc7 {[%clk 0:04:51.7]} 7.
h3 {[%clk 0:04:42.3]} 7... Bh5 {[%clk 0:04:50.4]} 8. Qd2 {[%clk 0:04:39.4]} 8...
e5 {[%clk 0:04:49.6]} 9. Bg3 {[%clk 0:04:34.8]} 9... O-O-O {[%clk 0:04:43.3]}
10. O-O-O {[%clk 0:04:33]} 10... Be7 {[%clk 0:04:39.6]} 11. d5 {[%clk
0:04:32.2]} 11... Nc5 {[%clk 0:04:37]} 12. Kb1 {[%clk 0:04:25.6]} 12... Nfxe4
{[%clk 0:04:33.2]} 13. Nxe4 {[%clk 0:04:24.1]} 13... Nxe4 {[%clk 0:04:33.1]} 14.
Qe3 {[%clk 0:04:21.7]} 14... Nxg3 {[%clk 0:04:26.1]} 15. fxg3 {[%clk 0:04:20.1]}
15... c5 {[%clk 0:04:21.6]} 16. g4 {[%clk 0:04:11.5]} 16... Bg6 {[%clk
0:04:20.5]} 17. Nd2 {[%clk 0:04:09.2]} 17... h6 {[%clk 0:04:18.1]} 18. Nc4
{[%clk 0:04:06.9]} 18... Bg5 {[%clk 0:04:16.9]} 19. Qa3 {[%clk 0:04:02.2]} 19...
b5 {[%clk 0:04:12.4]} 20. Qa6+ {[%clk 0:03:58.5]} 20... Qb7 {[%clk 0:04:11.2]}
21. Nxd6+ {[%clk 0:03:55.6]} 21... Rxd6 {[%clk 0:04:08.9]} 22. Qxd6 {[%clk
0:03:54.6]} 22... Bf4 {[%clk 0:03:51.6]} 23. Qxc5+ {[%clk 0:03:52.3]} 23... Kb8
{[%clk 0:03:50]} 24. Bxb5 {[%clk 0:03:46.4]} 24... Rc8 {[%clk 0:03:43.8]} 25.
Bc6 {[%clk 0:03:44.5]} 25... Qb6 {[%clk 0:03:42.4]} 26. Qd6+ {[%clk 0:03:41.6]}
26... Qc7 {[%clk 0:03:38.7]} 27. Qb4+ {[%clk 0:03:35.5]} 27... Qb6 {[%clk
0:03:37.1]} 28. Qe7 {[%clk 0:03:24.3]} 28... Qc7 {[%clk 0:03:27.5]} 29. Qa3
{[%clk 0:03:06.2]} 29... Rd8 {[%clk 0:03:05.9]} 30. Rhf1 {[%clk 0:02:47]} 30...
Qb6 {[%clk 0:02:58.7]} 31. g3 {[%clk 0:02:38.9]} 31... Be3 {[%clk 0:02:55.7]}
32. Rf3 {[%clk 0:02:28.7]} 32... Qxc6 {[%clk 0:02:43.9]} 33. Rxe3 {[%clk
0:02:19.8]} 33... Qxc2+ {[%clk 0:02:39.7]} 0-1

[Event "Live Chess"]
[Site "Chess.com"]
[Date "2023.05.20"]
[Round "-"]
[White "CheckThis4"]
[Black "LiamClery2020"]
[Result "1-0"]
[WhiteElo "2536"]
[BlackElo "2060"]
[TimeControl "300"]
[EndTime "15:40:57 PDT"]
[Termination "CheckThis4 won by resignation"]

1. d4 {[%clk 0:04:56.7]} 1... Nf6 {[%clk 0:04:58.8]} 2. Nc3 {[%clk 0:04:55.8]}
2... d6 {[%clk 0:04:56.6]} 3. e4 {[%clk 0:04:54.7]} 3... g6 {[%clk 0:04:54]} 4.
Be3 {[%clk 0:04:53.6]} 4... Bg7 {[%clk 0:04:53.3]} 5. Qd2 {[%clk 0:04:52.9]}
5... Nbd7 {[%clk 0:04:48.4]} 6. Bh6 {[%clk 0:04:51.2]} 6... O-O {[%clk 0:04:43]}
7. h4 {[%clk 0:04:47.4]} 7... e5 {[%clk 0:04:40.8]} 8. Nge2 {[%clk 0:04:34.6]}
8... Re8 {[%clk 0:04:36.9]} 9. Bxg7 {[%clk 0:04:31.1]} 9... Kxg7 {[%clk
0:04:35.5]} 10. h5 {[%clk 0:04:30.7]} 10... exd4 {[%clk 0:04:32.1]} 11. Nxd4
{[%clk 0:04:11.3]} 11... Nxe4 {[%clk 0:04:24.4]} 12. Nxe4 {[%clk 0:04:09.9]}
12... Rxe4+ {[%clk 0:04:23.5]} 13. Be2 {[%clk 0:04:09.2]} 13... Qf6 {[%clk
0:04:21.5]} 14. O-O-O {[%clk 0:04:03.3]} 14... Nc5 {[%clk 0:04:02.5]} 15. hxg6
{[%clk 0:03:58.2]} 15... Qxg6 {[%clk 0:03:56.6]} 16. Bf3 {[%clk 0:03:51.7]}
16... Re8 {[%clk 0:03:47.8]} 17. Kb1 {[%clk 0:03:50.3]} 17... Be6 {[%clk
0:03:44.5]} 18. Nxe6+ {[%clk 0:03:44]} 18... Rxe6 {[%clk 0:03:43.5]} 19. Rh3
{[%clk 0:03:39.2]} 19... Kf8 {[%clk 0:03:37.1]} 20. Rdh1 {[%clk 0:03:32.8]}
20... Rae8 {[%clk 0:03:32]} 21. a3 {[%clk 0:03:31.4]} 21... Ne4 {[%clk
0:03:25.2]} 22. Bxe4 {[%clk 0:03:28.2]} 22... Rxe4 {[%clk 0:03:25.1]} 23. Rxh7
{[%clk 0:03:15.5]} 23... Re1+ {[%clk 0:03:22.7]} 24. Rxe1 {[%clk 0:03:03.5]}
24... Rxe1+ {[%clk 0:03:21.3]} 25. Qxe1 {[%clk 0:03:03.1]} 25... Qxh7 {[%clk
0:03:21.2]} 26. Qa5 {[%clk 0:02:49.9]} 26... Qh1+ {[%clk 0:03:18]} 27. Ka2
{[%clk 0:02:48.8]} 27... Qxg2 {[%clk 0:03:17.3]} 28. Qxc7 {[%clk 0:02:47.2]}
28... Qd5+ {[%clk 0:03:14.5]} 29. c4 {[%clk 0:02:44.8]} 29... Qc6 {[%clk
0:03:10.4]} 30. Qd8+ {[%clk 0:02:41.2]} 30... Kg7 {[%clk 0:03:09.4]} 31. Qg5+
{[%clk 0:02:40]} 31... Kf8 {[%clk 0:03:08.5]} 32. Qh4 {[%clk 0:02:35.1]} 32...
b5 {[%clk 0:02:57.5]} 33. Qd8+ {[%clk 0:02:26]} 33... Kg7 {[%clk 0:02:56.4]} 34.
Qg5+ {[%clk 0:02:25]} 34... Kf8 {[%clk 0:02:54.2]} 35. Qxb5 {[%clk 0:02:23.1]}
35... Qe4 {[%clk 0:02:52.4]} 36. Qd5 {[%clk 0:02:18.7]} 36... Qc2 {[%clk
0:02:40.8]} 37. Qxd6+ {[%clk 0:02:15.8]} 37... Kg8 {[%clk 0:02:40.2]} 38. Qd8+
{[%clk 0:02:12.6]} 38... Kg7 {[%clk 0:02:39.2]} 39. Qd4+ {[%clk 0:02:11.2]}
39... Kf8 {[%clk 0:02:38.3]} 40. f4 {[%clk 0:02:08.5]} 40... a5 {[%clk
0:02:37.4]} 41. Qc3 {[%clk 0:02:00.3]} 41... Qe4 {[%clk 0:02:34.2]} 42. c5
{[%clk 0:01:55.3]} 42... a4 {[%clk 0:02:27]} 43. c6 {[%clk 0:01:42.4]} 43...
Qd5+ {[%clk 0:02:25]} 44. b3 {[%clk 0:01:41.2]} 44... Qg2+ {[%clk 0:02:21.1]}
45. Kb1 {[%clk 0:01:36.4]} 45... axb3 {[%clk 0:02:11]} 46. c7 {[%clk 0:01:07.2]}
46... Qa2+ {[%clk 0:02:08.2]} 47. Kc1 {[%clk 0:01:06.6]} 47... Qxa3+ {[%clk
0:01:59.3]} 48. Kd2 {[%clk 0:01:05.6]} 48... Qd6+ {[%clk 0:01:56.2]} 49. Ke3
{[%clk 0:01:03.7]} 49... Qb6+ {[%clk 0:01:51.8]} 50. Kf3 {[%clk 0:01:00.8]}
50... Qb7+ {[%clk 0:01:45.9]} 51. Kg3 {[%clk 0:00:58]} 1-0

[Event "Live Chess"]
[Site "Chess.com"]
[Date "2023.05.20"]
[Round "-"]
[White "smoggyrabbit"]
[Black "Nazar_777"]
[Result "1-0"]
[WhiteElo "1701"]
[BlackElo "1631"]
[TimeControl "300"]
[EndTime "15:41:26 PDT"]
[Termination "smoggyrabbit won by checkmate"]

1. d4 {[%clk 0:04:59]} 1... e6 {[%clk 0:04:56.9]} 2. Nf3 {[%clk 0:04:57.8]} 2...
a6 {[%clk 0:04:56.3]} 3. e3 {[%clk 0:04:52.9]} 3... h5 {[%clk 0:04:55.5]} 4. Bd3
{[%clk 0:04:51.6]} 4... c5 {[%clk 0:04:54.5]} 5. b3 {[%clk 0:04:47.7]} 5... Nf6
{[%clk 0:04:53.2]} 6. Bb2 {[%clk 0:04:46.8]} 6... cxd4 {[%clk 0:04:52.3]} 7.
exd4 {[%clk 0:04:45.4]} 7... Be7 {[%clk 0:04:51.7]} 8. O-O {[%clk 0:04:44.3]}
8... Qc7 {[%clk 0:04:51.1]} 9. Nbd2 {[%clk 0:04:39.5]} 9... Nc6 {[%clk
0:04:50.1]} 10. c4 {[%clk 0:04:34.4]} 10... Ng4 {[%clk 0:04:48.9]} 11. h3 {[%clk
0:04:31]} 11... Bh4 {[%clk 0:04:47.6]} 12. hxg4 {[%clk 0:03:59.1]} 12... hxg4
{[%clk 0:04:42.9]} 13. Ne5 {[%clk 0:03:53.3]} 13... Nxe5 {[%clk 0:04:37.2]} 14.
dxe5 {[%clk 0:03:51.7]} 14... Bf6 {[%clk 0:04:35]} 15. Qxg4 {[%clk 0:03:38.5]}
15... Bxe5 {[%clk 0:04:33.3]} 16. Bxe5 {[%clk 0:03:36.3]} 16... Qxe5 {[%clk
0:04:32.1]} 17. Nf3 {[%clk 0:03:31]} 17... Qh5 {[%clk 0:04:28.4]} 18. Qxh5
{[%clk 0:03:27.8]} 18... Rxh5 {[%clk 0:04:27]} 19. Rfe1 {[%clk 0:03:15.7]} 19...
b6 {[%clk 0:04:25]} 20. Rad1 {[%clk 0:03:06.4]} 20... Bb7 {[%clk 0:04:23.7]} 21.
Be4 {[%clk 0:03:03.4]} 21... Bxe4 {[%clk 0:04:18]} 22. Rxe4 {[%clk 0:03:03.3]}
22... f5 {[%clk 0:04:14.4]} 23. Red4 {[%clk 0:02:55.5]} 23... Rd8 {[%clk
0:04:10.5]} 24. Ne5 {[%clk 0:02:51.4]} 24... g5 {[%clk 0:04:02.2]} 25. Rxd7
{[%clk 0:02:49]} 25... Rxd7 {[%clk 0:03:49.1]} 26. Rxd7 {[%clk 0:02:48.9]} 26...
f4 {[%clk 0:03:47.9]} 27. Rb7 {[%clk 0:02:45]} 27... g4 {[%clk 0:03:46.7]} 28.
Nxg4 {[%clk 0:02:43.6]} 28... Rg5 {[%clk 0:03:36.4]} 29. Nf6+ {[%clk 0:02:38.2]}
29... Kd8 {[%clk 0:03:23.8]} 30. f3 {[%clk 0:02:22.7]} 30... Rf5 {[%clk
0:03:17.2]} 31. Ne4 {[%clk 0:02:20.1]} 31... b5 {[%clk 0:03:11.8]} 32. Ra7
{[%clk 0:02:04.9]} 32... bxc4 {[%clk 0:03:06.2]} 33. bxc4 {[%clk 0:02:04.8]}
33... Ra5 {[%clk 0:03:01.6]} 34. c5 {[%clk 0:01:55.3]} 34... Rxa2 {[%clk
0:02:57]} 35. c6 {[%clk 0:01:49.7]} 35... a5 {[%clk 0:02:52.8]} 36. c7+ {[%clk
0:01:47]} 36... Kc8 {[%clk 0:02:51.4]} 37. Nd6+ {[%clk 0:01:43.9]} 37... Kd7
{[%clk 0:02:39.7]} 38. c8=Q+ {[%clk 0:01:41.2]} 38... Kxd6 {[%clk 0:02:38.3]}
39. Ra6+ {[%clk 0:01:35.9]} 39... Ke5 {[%clk 0:02:34.7]} 40. Qxe6+ {[%clk
0:01:34.8]} 40... Kd4 {[%clk 0:02:32.4]} 41. Qxa2 {[%clk 0:01:33.8]} 41... Ke3
{[%clk 0:02:30.9]} 42. Rd6 {[%clk 0:01:30.1]} 42... a4 {[%clk 0:02:29.9]} 43.
Qd2# {[%clk 0:01:28.2]} 1-0

[Event "Live Chess"]
[Site "Chess.com"]
[Date "2023.05.20"]
[Round "-"]
[White "Conradical12"]
[Black "miguelchuk"]
[Result "1-0"]
[WhiteElo "1615"]
[BlackElo "1577"]
[TimeControl "300"]
[EndTime "15:41:29 PDT"]
[Termination "Conradical12 won on time"]

1. e4 {[%clk 0:04:58.8]} 1... e5 {[%clk 0:04:49.6]} 2. Nf3 {[%clk 0:04:56.7]}
2... Nc6 {[%clk 0:04:48.2]} 3. Bc4 {[%clk 0:04:54.6]} 3... Nf6 {[%clk
0:04:43.3]} 4. O-O {[%clk 0:04:52.2]} 4... Bd6 {[%clk 0:04:24.7]} 5. Nc3 {[%clk
0:04:41.8]} 5... O-O {[%clk 0:04:22.2]} 6. d3 {[%clk 0:04:40.1]} 6... Na5 {[%clk
0:04:18.2]} 7. Bb3 {[%clk 0:04:38.5]} 7... Nxb3 {[%clk 0:04:16.6]} 8. axb3
{[%clk 0:04:38.4]} 8... b6 {[%clk 0:04:02.8]} 9. Bg5 {[%clk 0:04:35.6]} 9... h6
{[%clk 0:03:55.9]} 10. Bxf6 {[%clk 0:04:32.7]} 10... Qxf6 {[%clk 0:03:52.4]} 11.
Nd5 {[%clk 0:04:32.2]} 11... Qe6 {[%clk 0:03:39]} 12. c4 {[%clk 0:04:24.4]}
12... Bc5 {[%clk 0:03:26.8]} 13. Nc3 {[%clk 0:04:21.3]} 13... Bb7 {[%clk
0:03:17.9]} 14. Nb5 {[%clk 0:04:17.7]} 14... Rfc8 {[%clk 0:03:01.7]} 15. Nxa7
{[%clk 0:04:14.1]} 15... Rd8 {[%clk 0:02:50.8]} 16. Nb5 {[%clk 0:04:12.6]} 16...
f5 {[%clk 0:02:37.3]} 17. Rxa8 {[%clk 0:04:05.7]} 17... Bxa8 {[%clk 0:02:31.6]}
18. Nxc7 {[%clk 0:04:04.3]} 18... Qg6 {[%clk 0:02:14.1]} 19. Nxa8 {[%clk
0:03:58.3]} 19... fxe4 {[%clk 0:02:08.2]} 20. Nxe5 {[%clk 0:03:53.3]} 20... Qf5
{[%clk 0:01:53.2]} 21. d4 {[%clk 0:03:51.7]} 21... Rxa8 {[%clk 0:01:20.9]} 22.
dxc5 {[%clk 0:03:45.4]} 22... Qxe5 {[%clk 0:01:17.2]} 23. Qd5+ {[%clk
0:03:45.3]} 23... Qxd5 {[%clk 0:01:14.2]} 24. cxd5 {[%clk 0:03:45.2]} 24... bxc5
{[%clk 0:01:09.5]} 25. Re1 {[%clk 0:03:42.9]} 25... Re8 {[%clk 0:01:04.9]} 26.
f3 {[%clk 0:03:36.2]} 26... e3 {[%clk 0:01:02.3]} 27. Re2 {[%clk 0:03:35.3]}
27... Re5 {[%clk 0:00:55.8]} 28. Kf1 {[%clk 0:03:33.7]} 28... Kf7 {[%clk
0:00:52.1]} 29. d6 {[%clk 0:03:30.7]} 29... Ke6 {[%clk 0:00:49.4]} 30. f4 {[%clk
0:03:20.8]} 30... Re4 {[%clk 0:00:45.7]} 31. g3 {[%clk 0:03:16.2]} 31... Kd5
{[%clk 0:00:35]} 32. Kg2 {[%clk 0:03:14.9]} 32... Kd4 {[%clk 0:00:33.6]} 33. Kf3
{[%clk 0:03:13]} 33... Re6 {[%clk 0:00:30.4]} 34. g4 {[%clk 0:03:07]} 34... Kd3
{[%clk 0:00:28]} 35. h4 {[%clk 0:03:02.8]} 35... Rxd6 {[%clk 0:00:17.3]} 36.
Rxe3+ {[%clk 0:02:57.1]} 36... Kd2 {[%clk 0:00:16.5]} 37. Re2+ {[%clk
0:02:55.6]} 37... Kc1 {[%clk 0:00:13.9]} 38. g5 {[%clk 0:02:52.8]} 38... Rd3+
{[%clk 0:00:12.9]} 39. Kg4 {[%clk 0:02:50]} 39... Rxb3 {[%clk 0:00:11.3]} 40.
gxh6 {[%clk 0:02:49.1]} 40... gxh6 {[%clk 0:00:10.1]} 41. Kh5 {[%clk 0:02:48.5]}
41... Rb4 {[%clk 0:00:08.2]} 42. f5 {[%clk 0:02:45.7]} 42... Rf4 {[%clk
0:00:07.3]} 43. Kg6 {[%clk 0:02:42.6]} 43... Kd1 {[%clk 0:00:04.8]} 44. f6
{[%clk 0:02:41.5]} 44... Rg4+ {[%clk 0:00:01.7]} 45. Kf5 {[%clk 0:02:39.7]} 1-0

[Event "Live Chess"]
[Site "Chess.com"]
[Date "2023.05.20"]
[Round "-"]
[White "ExIsambard"]
[Black "fretle"]
[Result "1-0"]
[WhiteElo "1964"]
[BlackElo "1826"]
[TimeControl "300"]
[EndTime "15:41:35 PDT"]
[Termination "ExIsambard won by checkmate"]

1. d4 {[%clk 0:04:59]} 1... d5 {[%clk 0:04:57.7]} 2. Bg5 {[%clk 0:04:57.5]} 2...
c6 {[%clk 0:04:56.1]} 3. e3 {[%clk 0:04:55.7]} 3... Nf6 {[%clk 0:04:52.6]} 4.
Nf3 {[%clk 0:04:54.9]} 4... Bg4 {[%clk 0:04:51.1]} 5. Bd3 {[%clk 0:04:54.1]}
5... Nbd7 {[%clk 0:04:47.6]} 6. Nbd2 {[%clk 0:04:53.2]} 6... e6 {[%clk
0:04:44.2]} 7. c3 {[%clk 0:04:52]} 7... h6 {[%clk 0:04:42.9]} 8. Bf4 {[%clk
0:04:50.9]} 8... Qb6 {[%clk 0:04:24.2]} 9. Qc2 {[%clk 0:04:49.7]} 9... Nh5
{[%clk 0:04:12.3]} 10. Be5 {[%clk 0:04:47]} 10... f6 {[%clk 0:04:06.9]} 11. Bg6+
{[%clk 0:04:44.6]} 11... Kd8 {[%clk 0:04:06.3]} 12. Bxh5 {[%clk 0:04:43.9]}
12... Bxh5 {[%clk 0:04:06.2]} 13. Bg3 {[%clk 0:04:37.8]} 13... Be7 {[%clk
0:03:45.4]} 14. O-O {[%clk 0:04:35.5]} 14... Bf7 {[%clk 0:03:33.6]} 15. e4
{[%clk 0:04:34.3]} 15... g5 {[%clk 0:03:28.6]} 16. exd5 {[%clk 0:04:30.6]} 16...
cxd5 {[%clk 0:03:28.5]} 17. Rfe1 {[%clk 0:04:25]} 17... h5 {[%clk 0:03:19.5]}
18. h4 {[%clk 0:04:22.3]} 18... g4 {[%clk 0:03:10.9]} 19. Nh2 {[%clk 0:04:18.7]}
19... Bd6 {[%clk 0:03:01.6]} 20. Nhf1 {[%clk 0:03:53.8]} 20... Rh6 {[%clk
0:02:50.7]} 21. a4 {[%clk 0:03:29.4]} 21... f5 {[%clk 0:02:40.4]} 22. a5 {[%clk
0:03:17.7]} 22... Qc6 {[%clk 0:02:33.5]} 23. c4 {[%clk 0:03:15.8]} 23... f4
{[%clk 0:02:30.2]} 24. Bh2 {[%clk 0:03:09.8]} 24... Rc8 {[%clk 0:02:11.1]} 25.
b3 {[%clk 0:03:03.1]} 25... Bg6 {[%clk 0:01:56.8]} 26. Qc3 {[%clk 0:02:59.9]}
26... Bf5 {[%clk 0:01:55.1]} 27. c5 {[%clk 0:02:54.2]} 27... Bb8 {[%clk
0:01:50.8]} 28. b4 {[%clk 0:02:49.4]} 28... a6 {[%clk 0:01:49.9]} 29. Nb3 {[%clk
0:02:11.6]} 29... Qb5 {[%clk 0:01:37.9]} 30. Nc1 {[%clk 0:02:10]} 30... Rg6
{[%clk 0:01:31.8]} 31. Ne2 {[%clk 0:02:06.3]} 31... f3 {[%clk 0:00:44.7]} 32.
Neg3 {[%clk 0:02:05.1]} 32... fxg2 {[%clk 0:00:41.9]} 33. Kxg2 {[%clk
0:02:03.6]} 33... Nf6 {[%clk 0:00:26.6]} 34. Nxf5 {[%clk 0:01:50.2]} 34... exf5
{[%clk 0:00:25.3]} 35. Bxb8 {[%clk 0:01:45.2]} 35... Rxb8 {[%clk 0:00:25.2]} 36.
Ng3 {[%clk 0:01:37.1]} 36... f4 {[%clk 0:00:21.5]} 37. Nf5 {[%clk 0:01:33.8]}
37... Ne4 {[%clk 0:00:19.5]} 38. Rxe4 {[%clk 0:01:27.8]} 38... dxe4 {[%clk
0:00:18.5]} 39. d5 {[%clk 0:01:25]} 39... f3+ {[%clk 0:00:17.1]} 40. Kg1 {[%clk
0:01:16.6]} 40... Qe2 {[%clk 0:00:15.5]} 41. Qh8+ {[%clk 0:01:14.6]} 41... Kc7
{[%clk 0:00:14.3]} 42. Qh7+ {[%clk 0:01:11.3]} 42... Kc8 {[%clk 0:00:13.5]} 43.
Ne7+ {[%clk 0:01:07.8]} 43... Kd8 {[%clk 0:00:12.2]} 44. Nxg6 {[%clk 0:01:06.2]}
44... g3 {[%clk 0:00:10.3]} 45. Qe7+ {[%clk 0:01:03.1]} 45... Kc8 {[%clk
0:00:09.6]} 46. Qe6+ {[%clk 0:01:00.3]} 46... Kd8 {[%clk 0:00:09.1]} 47. Qd6+
{[%clk 0:00:57]} 47... Kc8 {[%clk 0:00:08.1]} 48. Ne7# {[%clk 0:00:56.2]} 1-0

[Event "Live Chess"]
[Site "Chess.com"]
[Date "2023.05.20"]
[Round "-"]
[White "Stanbad1"]
[Black "jimwad"]
[Result "1-0"]
[WhiteElo "2401"]
[BlackElo "1225"]
[TimeControl "300"]
[EndTime "15:41:36 PDT"]
[Termination "Stanbad1 won by resignation"]

1. d4 {[%clk 0:04:56.5]} 1... d5 {[%clk 0:04:58.5]} 2. Nc3 {[%clk 0:04:55.7]}
2... Nf6 {[%clk 0:04:55.7]} 3. Bf4 {[%clk 0:04:55.1]} 3... Nc6 {[%clk
0:04:53.9]} 4. Nb5 {[%clk 0:04:53.1]} 4... e5 {[%clk 0:04:41.8]} 5. Bxe5 {[%clk
0:04:51.1]} 5... Nxe5 {[%clk 0:04:39.6]} 6. dxe5 {[%clk 0:04:51]} 6... Nd7
{[%clk 0:04:37.2]} 7. Qxd5 {[%clk 0:04:49]} 7... Bb4+ {[%clk 0:04:33.6]} 8. c3
{[%clk 0:04:32.1]} 8... Ba5 {[%clk 0:04:29.8]} 9. e6 {[%clk 0:04:23.3]} 9...
fxe6 {[%clk 0:04:27.9]} 10. Qxe6+ {[%clk 0:04:23.2]} 10... Qe7 {[%clk
0:04:26.8]} 11. Qxe7+ {[%clk 0:04:22.3]} 11... Kxe7 {[%clk 0:04:25.5]} 12. O-O-O
{[%clk 0:04:22.2]} 12... c6 {[%clk 0:04:20.9]} 13. Nd6 {[%clk 0:04:20.7]} 13...
Rd8 {[%clk 0:04:11.7]} 14. Nxc8+ {[%clk 0:04:20.6]} 14... Raxc8 {[%clk
0:04:09.9]} 15. e3 {[%clk 0:04:18.4]} 15... Kf8 {[%clk 0:04:06]} 16. Nf3 {[%clk
0:04:16.3]} 16... Nf6 {[%clk 0:04:04.2]} 17. Bc4 {[%clk 0:04:13.8]} 17... Ne4
{[%clk 0:03:58.3]} 18. Rdf1 {[%clk 0:04:10.1]} 18... b5 {[%clk 0:03:51.7]} 19.
Be6 {[%clk 0:04:06.7]} 19... Rc7 {[%clk 0:03:49.1]} 20. Bf5 {[%clk 0:04:05.3]}
20... Nf6 {[%clk 0:03:47.2]} 21. Ng5 {[%clk 0:04:04.8]} 21... Kg8 {[%clk
0:03:45.4]} 22. Ne6 {[%clk 0:04:02.7]} 22... Rcd7 {[%clk 0:03:41.6]} 23. Nxd8
{[%clk 0:04:00.6]} 23... Rxd8 {[%clk 0:03:40.5]} 24. Rd1 {[%clk 0:04:00.3]}
24... Rxd1+ {[%clk 0:03:37.6]} 25. Rxd1 {[%clk 0:04:00.2]} 25... Bc7 {[%clk
0:03:34.2]} 26. f3 {[%clk 0:03:58.4]} 26... Nd5 {[%clk 0:03:31.4]} 27. Be6+
{[%clk 0:03:47.4]} 27... Kf8 {[%clk 0:03:29]} 28. Bxd5 {[%clk 0:03:47.3]} 28...
cxd5 {[%clk 0:03:27.6]} 29. Rxd5 {[%clk 0:03:47.2]} 29... Bxh2 {[%clk 0:03:25]}
30. Rxb5 {[%clk 0:03:43.6]} 30... Bg1 {[%clk 0:03:22.4]} 31. e4 {[%clk
0:03:38.1]} 31... Be3+ {[%clk 0:03:18]} 32. Kc2 {[%clk 0:03:36.3]} 32... Bf4
{[%clk 0:03:16.4]} 33. Rf5+ {[%clk 0:03:29.9]} 1-0